{"text_format":"1","workbook":"xlsx","n_sheets":3,"sheets":["المبيعات اليوميه","البضاعه","اجمالى المبيعات"],"not_rendered":{"charts":0,"images":0,"macros":1,"external_links":0,"defined_names":1,"comments":0,"pivot_tables":0},"unopened":[],"bounds":{"document_bytes":16777216,"sheet_cells":100000,"rows_first":2000,"rows_last":500,"rows_between":2000,"halvings":0,"cell_chars":16384,"cell_head_chars":4096},"cells_cut":0,"cells_raw":0,"read":"whole","date_system":"1900"}

{"sheet":"المبيعات اليوميه","index":0,"n_rows":37,"n_cols":5,"rows_kept":37,"cut":false,"hidden":false,"merged":[]}
["رقم الصنف","الصنف","المبلغ","التاريخ","ملاحظات"]
[1,{"$f":"IFERROR(VLOOKUP(A2,aly,2,0),\"\")","v":"lnb واحد مخرج"},5,"2020-01-01"]
[2,"lnb اثنين مخرج",5,"2020-01-01"]
[3,"lnb اربعه مخرج",5,"2020-01-01"]
[13,"طبق 70 سم",5,"2020-01-01"]
[25,"حامل شاشه 39 مصرى",5,"2020-01-01"]
[12,"سلك 100 يارده ابيض",5,"2020-01-01"]
[null,""]
[null,""]
[null,""]
[null,""]
[null,""]
[null,""]
[null,""]
[null,""]
[null,""]
[null,""]
[null,""]
[null,""]
[null,""]
[null,""]
[null,""]
[null,""]
[null,""]
[null,""]
[null,""]
[null,""]
[null,""]
[null,""]
[null,""]
[null,""]
[null,""]
[null,""]
[null,""]
[null,""]
[null,""]
[null,""]

{"sheet":"البضاعه","index":1,"n_rows":30,"n_cols":2,"rows_kept":30,"cut":false,"hidden":false,"merged":[]}
["الكود","الصنف"]
[1,"lnb واحد مخرج"]
[2,"lnb اثنين مخرج"]
[3,"lnb اربعه مخرج"]
[4,"lnb ثمانيه مخرج"]
[5,"سلك 20 يارده اسود"]
[6,"سلك 30 يارده اسود"]
[7,"سلك 50 يارده اسود"]
[8,"سلك 100 يارده اسود"]
[9,"سلك 20 يارده ابيض"]
[10,"سلك 30 يارده ابيض"]
[11,"سلك 50 يارده ابيض"]
[12,"سلك 100 يارده ابيض"]
[13,"طبق 70 سم"]
[14,"طبق 80 سم"]
[15,"طبق 100 سم"]
[16,"كابل 1×1"]
[17,"كابل 1×2"]
[18,"كابل 1×3"]
[19,"كابل hd"]
[20,"ريموت عادى"]
[21,"ريموت شعبى"]
[22,"ريموت hd"]
[23,"ريموت تلفزيون"]
[24,"حامل شاشه 32 مصرى"]
[25,"حامل شاشه 39 مصرى"]
[26,"حامل شاشه 50 مصرى"]
[27,"حامل شاشه 32 مستورد"]
[28,"حامل شاشه 39 مستورد"]
[29,"حامل شاشه 50 مستورد"]

{"sheet":"اجمالى المبيعات","index":2,"n_rows":11,"n_cols":5,"rows_kept":11,"cut":false,"hidden":false,"merged":[]}
["رقم الصنف","الصنف","المبلغ","التاريخ","ملاحظات"]
[1,"lnb واحد مخرج",1,"2020-12-29"]
[2,"lnb اثنين مخرج",5,"2020-12-29"]
[3,"lnb اربعه مخرج",6,"2020-12-29"]
[5,"سلك 20 يارده اسود",2,"2020-12-29"]
[4,"lnb ثمانيه مخرج",1,"2020-12-29"]
[1,"lnb واحد مخرج",1,"2020-12-29"]
[2,"lnb اثنين مخرج",5,"2020-12-29"]
[3,"lnb اربعه مخرج",6,"2020-12-29"]
[5,"سلك 20 يارده اسود",2,"2020-12-29"]
[4,"lnb ثمانيه مخرج",1,"2020-12-29"]